fUSD/lending_fUSD_20250828
["ID","MTS","AMOUNT","RATE_DAILY","PERIOD"]
[381853327,1756371049399,-153.0,0.00026625,2]
[381853329,1756371049408,-153.23,0.00026676,2]
[381853331,1756371049417,-408.09,0.000267,7]
[381853333,1756371049427,-637.58712648,0.00026711,2]
[381853335,1756371049436,-850.88,0.00026766,2]
[381853337,1756371049445,-1455.79152602,0.00026789,5]
[381853339,1756371049454,-24704.1033116,0.0002679,3]
[381853341,1756371049463,-251.650686,0.0002679,7]
[381853343,1756371049472,-251.650686,0.0002679,7]
[381853345,1756371049481,-251.650686,0.0002679,7]
[381853347,1756371049490,-251.650686,0.0002679,7]
[381853349,1756371049499,-5720.62,0.000268,7]
[381853350,1756371049508,-404.43,0.00026808,2]
[381853352,1756371049518,-452.42,0.00026808,2]
[381853354,1756371049527,-400.0,0.00026808,2]
[381853356,1756371049536,-214.78878049,0.00026808,2]
[381853358,1756371049545,-153.93832257,0.00026845,2]
[381853360,1756371049554,-1802.45114882,0.00026853,2]
[381853362,1756371049565,-755.9760547,0.0002691,2]
[381853364,1756371049576,-309.29654756,0.00026918,2]
[381853366,1756371049585,-721.12765535,0.00026921,2]
[381853368,1756371049593,-539.77777207,0.00026959,2]
[381853370,1756371049602,-8988.56728329,0.0002699,6]
[381853372,1756371049613,-3021.21,0.00026991,4]
[381853374,1756371049622,-221.0,0.00027,2]
[381853375,1756371049631,-554.0,0.00027,2]
[381853378,1756371049643,-65196.8320756,0.00027,3]
[381853380,1756371049652,-148224.61987,0.00027,3]
[381853381,1756371049662,-280856.17949305,0.0002701,2]
[381853383,1756371049671,-151.0,0.0002701,7]
[381853385,1756371049680,-151.0,0.0002701,7]
[381853387,1756371049689,-151.0,0.0002701,7]
[381853389,1756371049698,-151.0,0.0002701,7]
[381853391,1756371049707,-151.0,0.0002701,7]
[381853393,1756371049716,-151.0,0.0002701,7]
[381853395,1756371049725,-281.154184,0.0002701,7]
[381853397,1756371049735,-151.0,0.0002701,7]
[381853399,1756371049744,-151.0,0.0002701,7]
[381853401,1756371049753,-151.0,0.0002701,7]
[381853403,1756371049762,-333.14906864,0.00027031,2]
[381853405,1756371049771,-850.88,0.0002704,2]
[381853407,1756371049780,-150.0,0.00027073,2]
[381853409,1756371049789,-404.43,0.00027082,2]
[381853411,1756371049798,-452.42,0.00027082,2]
[381853413,1756371049807,-338.86883627,0.00027082,2]
[381853415,1756371049816,-1204.89,0.000271,7]
[381853416,1756371049825,-310.23,0.000271,7]
[381853418,1756371049834,-532.0,0.00027137,2]
[381853420,1756371049844,-174.35,0.00027169,2]
[381853422,1756371049853,-366.0,0.00027185,7]
[381853424,1756371049862,-8973.49940449,0.00027266,2]
[381853426,1756371049872,-5000.0,0.00027266,2]
[381853428,1756371049881,-5000.0,0.00027266,2]
[381853430,1756371049890,-1058.86,0.000273,2]
[381853432,1756371049900,-850.88,0.00027314,2]
[381853434,1756371049909,-404.43,0.00027356,2]
[381853436,1756371049918,-452.42,0.00027356,2]
[381853438,1756371049927,-24704.1033116,0.00027387,3]
[381853440,1756371049936,-500.0,0.00027397,15]
[381853442,1756371049946,-500.0,0.00027397,15]
[381853444,1756371049955,-295.68685245,0.00027397,15]
[381853446,1756371049964,-1000.0,0.00027397,2]
[381853448,1756371049973,-1000.0,0.00027397,2]
[381853450,1756371049982,-1000.0,0.00027397,2]
[381853451,1756371049991,-1000.0,0.00027397,2]
[381853454,1756371050001,-1000.0,0.00027397,2]
[381853456,1756371050011,-229.48406925,0.00027397,2]
[381853457,1756371050020,-619.99,0.00027397,2]
[381853459,1756371050029,-619.99,0.00027397,2]
[381853461,1756371050039,-619.99,0.00027397,2]
[381853463,1756371050048,-619.99,0.00027397,2]
[381853465,1756371050057,-619.99,0.00027397,2]
[381853467,1756371050067,-619.99,0.00027397,2]
[381853469,1756371050075,-619.99,0.00027397,2]
[381853471,1756371050084,-619.99,0.00027397,2]
[381853473,1756371050093,-619.99,0.00027397,2]
[381853475,1756371050102,-619.99,0.00027397,2]
[381853477,1756371050111,-619.99,0.00027397,2]
[381853479,1756371050120,-619.99,0.00027397,2]
[381853481,1756371050129,-619.99,0.00027397,2]
[381853483,1756371050138,-619.99,0.00027397,2]
[381853485,1756371050147,-619.99,0.00027397,2]
[381853486,1756371050156,-619.99,0.00027397,2]
[381853488,1756371050165,-619.99,0.00027397,2]
[381853490,1756371050174,-619.99,0.00027397,2]
[381853492,1756371050185,-619.99,0.00027397,2]
[381853494,1756371050194,-619.99,0.00027397,2]
[381853496,1756371050203,-619.99,0.00027397,2]
[381853498,1756371050212,-619.99,0.00027397,2]
[381853500,1756371050221,-619.99,0.00027397,2]
[381853502,1756371050231,-620.07430268,0.00027397,2]
[381853504,1756371050241,-500.0,0.00027397,10]
[381853506,1756371050250,-500.0,0.00027397,10]
[381853508,1756371050259,-500.0,0.00027397,10]
[381853510,1756371050268,-500.0,0.00027397,10]
[381853512,1756371050277,-500.0,0.00027397,10]
[381853514,1756371050286,-500.0,0.00027397,10]
[381853516,1756371050295,-500.0,0.00027397,10]
[381853518,1756371050304,-500.0,0.00027397,10]
[381853520,1756371050314,-500.0,0.00027397,10]
[381853521,1756371050323,-277.49985159,0.00027397,10]
[381853523,1756371050333,-658.16,0.00027397,2]
[381853525,1756371050343,-658.16,0.00027397,2]
[381853527,1756371050352,-658.16,0.00027397,2]
[381853529,1756371050361,-658.16,0.00027397,2]
[381853531,1756371050370,-658.16,0.00027397,2]
[381853533,1756371050379,-658.16,0.00027397,2]
[381853535,1756371050388,-658.16,0.00027397,2]
[381853537,1756371050397,-658.16,0.00027397,2]
[381853539,1756371050406,-658.16,0.00027397,2]
[381853541,1756371050416,-658.16,0.00027397,2]
[381853543,1756371050424,-658.16,0.00027397,2]
[381853545,1756371050434,-658.16,0.00027397,2]
[381853547,1756371050443,-658.16,0.00027397,2]
[381853549,1756371050452,-658.16,0.00027397,2]
[381853551,1756371050462,-658.16,0.00027397,2]
[381853553,1756371050471,-658.16,0.00027397,2]
[381853555,1756371050480,-658.16,0.00027397,2]
[381853557,1756371050489,-658.16,0.00027397,2]
[381853559,1756371050499,-658.16,0.00027397,2]
[381853561,1756371050509,-658.16,0.00027397,2]
[381853562,1756371050518,-658.16,0.00027397,2]
[381853564,1756371050527,-658.16,0.00027397,2]
[381853566,1756371050536,-658.16,0.00027397,2]
[381853568,1756371050547,-658.28794739,0.00027397,2]
[381853570,1756371050556,-219.00382419,0.00027397,2]
[381853572,1756371050568,-150.0,0.00027397,2]
[381853574,1756371050578,-4000.0,0.00027397,2]
[381853576,1756371050587,-600.0,0.00027397,80]
[381853578,1756371050596,-1133.8,0.00027397,16]
[381853580,1756371050606,-151.0,0.00027397,7]
[381853582,1756371050617,-151.0,0.00027397,7]
[381853584,1756371050626,-151.0,0.00027397,7]
[381853586,1756371050635,-151.0,0.00027397,7]
[381853588,1756371050646,-151.0,0.00027397,7]
[381853590,1756371050656,-151.0,0.00027397,7]
[381853592,1756371050666,-151.0,0.00027397,7]
[381853594,1756371050674,-151.0,0.00027397,7]
[381853596,1756371050683,-151.0,0.00027397,7]
[381853598,1756371050692,-151.0,0.00027397,7]
[381853599,1756371050701,-151.0,0.00027397,7]
[381853601,1756371050710,-151.0,0.00027397,7]
[381853603,1756371050719,-230.792631,0.00027397,7]
[381853605,1756371050728,-151.0,0.00027397,7]
[381853607,1756371050738,-151.0,0.00027397,7]
[381853609,1756371050747,-151.0,0.00027397,7]
[381853611,1756371050756,-290.262543,0.00027397,7]
[381853613,1756371050765,-300.0,0.00027397,2]
[381853615,1756371050774,-408.09,0.000274,7]
[381853617,1756371050783,-153.93832257,0.00027484,2]
[381853619,1756371050792,-2500.0,0.00027498,7]
[381853621,1756371050802,-2671.47,0.000275,7]
[381853623,1756371050811,-924.74,0.000275,7]
[381853625,1756371050820,-2500.0,0.00027507,7]
[381853627,1756371050829,-24704.1033116,0.00027578,3]
[381853629,1756371050837,-1427.551,0.00027584,17]
[381853630,1756371050846,-163.007,0.00027584,17]
[381853632,1756371050856,-850.88,0.00027588,2]
[381853633,1756371050865,-408.09,0.000276,7]
[381853634,1756371050873,-250.0,0.00027621,5]
[381853635,1756371050882,-404.47222514,0.0002763,2]
[381853636,1756371050891,-452.58912837,0.0002763,2]
[381853637,1756371050900,-2105.58172,0.00027643,2]
[381853638,1756371050909,-1597.64,0.00027663,2]
[381853639,1756371050917,-217.1039554,0.00027671,2]
[381853640,1756371050926,-8988.56728329,0.00027687,8]
[381853641,1756371050935,-5720.62,0.000277,7]
[381853642,1756371050944,-1256.0,0.00027794,2]
[381853643,1756371050953,-926.0,0.00027794,2]
[381853644,1756371050962,-2029.0,0.00027794,2]
[381853645,1756371050971,-166.0,0.00027794,2]
[381853646,1756371050979,-688.0,0.00027794,2]
[381853647,1756371050988,-4156.0,0.00027794,2]
[381853648,1756371050997,-851.07916689,0.00027862,2]
[381853649,1756371051006,-150.0,0.00027883,30]
[381853650,1756371051015,-216.0,0.00028,2]
[381853652,1756371051024,-552.0,0.00028,2]
[381853654,1756371051034,-89188.86,0.00028,7]
[381853656,1756371051043,-1204.89,0.00028,7]
[381853658,1756371051052,-310.23,0.00028,7]
[381853660,1756371051062,-258.36640047,0.00028012,2]
[381853662,1756371051071,-2113.13,0.000281,7]
[381853664,1756371051080,-1802.45114882,0.00028191,2]
[381853666,1756371051089,-957.74,0.00028219,7]
[381853668,1756371051098,-755.97605469,0.00028236,2]
[381853670,1756371051107,-539.77777207,0.00028276,2]
[381853672,1756371051116,-320.74051982,0.00028287,2]
[381853674,1756371051125,-344.899999,0.000283,2]
[381853676,1756371051133,-344.9,0.000283,2]
[381853678,1756371051142,-344.9,0.000283,2]
[381853680,1756371051151,-4000.0,0.00028302,4]
[381853682,1756371051160,-160.0,0.00028358,2]
[381853684,1756371051170,-8988.56728329,0.00028384,9]
[381853686,1756371051179,-637.58712648,0.00028418,2]
[381853688,1756371051188,-150.0,0.0002843,30]
[381853690,1756371051196,-1559.04,0.00028493,12]
[381853692,1756371051206,-1058.86,0.000286,30]
[381853694,1756371051215,-89188.86,0.000286,7]
[381853696,1756371051223,-151.0,0.000286,7]
[381853697,1756371051233,-160.755259,0.000286,7]
[381853699,1756371051242,-151.0,0.000286,7]
[381853701,1756371051251,-151.0,0.000286,7]
[381853703,1756371051260,-151.0,0.000286,7]
[381853705,1756371051269,-247.709206,0.000286,7]
[381853707,1756371051278,-151.0,0.000286,7]
[381853709,1756371051288,-151.0,0.000286,7]
[381853711,1756371051296,-151.0,0.000286,7]
[381853713,1756371051306,-151.0,0.000286,7]
[381853715,1756371051314,-151.0,0.000286,7]
[381853717,1756371051323,-193.045024,0.000286,7]
[381853719,1756371051332,-12940.28927844,0.0002876,2]
[381853721,1756371051342,-950.56285169,0.0002876,2]
[381853723,1756371051351,-7844.13,0.000288,2]
[381853725,1756371051361,-408.09,0.000289,7]
[381853727,1756371051370,-89188.86,0.000289,7]
[381853729,1756371051379,-2000.0,0.000289,2]
[381853731,1756371051388,-7844.13,0.000289,2]
[381853733,1756371051397,-1300.0,0.000289,10]
[381853735,1756371051407,-957.74,0.00028904,8]
[381853737,1756371051415,-210.0,0.0002892,2]
[381853739,1756371051424,-213.0,0.0002892,2]
[381853741,1756371051434,-204.0,0.0002892,30]
[381853743,1756371051443,-150.0,0.00028978,30]
[381853745,1756371051452,-366.0,0.00028997,14]
[381853747,1756371051462,-216.0,0.00029,30]
[381853749,1756371051470,-552.0,0.00029,30]
[381853751,1756371051480,-29341.31323614,0.00029,2]
[381853753,1756371051489,-8988.56728329,0.0002908,11]
[381853755,1756371051498,-2005.24,0.0002918,30]
[381853757,1756371051506,-3021.21,0.00029183,6]
[381853759,1756371051515,-2096.0,0.00029248,2]
[381853761,1756371051524,-300.0,0.000293,2]
[381853763,1756371051533,-300.0,0.000293,2]
[381853765,1756371051542,-300.0,0.000293,2]
[381853767,1756371051552,-89188.86,0.000293,7]
[381853769,1756371051563,-333.14906864,0.00029362,2]
[381853771,1756371051573,-311.7,0.000294,2]
[381853773,1756371051582,-2671.47,0.000294,7]
[381853775,1756371051592,-924.74,0.000294,7]
[381853777,1756371051601,-150.0,0.00029443,2]
[381853779,1756371051611,-332.3,0.00029443,2]
[381853781,1756371051620,-173.87,0.00029443,2]
[381853783,1756371051629,-408.73,0.00029443,2]
[381853785,1756371051639,-329.75,0.00029443,2]
[381853786,1756371051649,-4000.0,0.00029471,4]
[381853788,1756371051658,-7844.13,0.000295,2]
[381853790,1756371051667,-150.0,0.00029526,30]
[381853792,1756371051676,-1802.45114882,0.00029528,2]
[381853794,1756371051686,-2096.0,0.0002955,2]
[381853796,1756371051695,-755.97605469,0.00029562,2]
[381853798,1756371051705,-957.74,0.00029589,9]
[381853800,1756371051714,-539.77777207,0.00029592,15]
[381853802,1756371051724,-2105.58172,0.00029643,2]
[381853804,1756371051734,-332.60791905,0.00029656,2]
[381853806,1756371051744,-747.8093786,0.0002966,2]
[381853808,1756371051753,-2005.24,0.00029738,30]
[381853810,1756371051762,-8988.56728329,0.00029777,12]
[381853812,1756371051771,-210.0,0.0002981,2]
[381853814,1756371051780,-213.0,0.0002981,2]
[381853816,1756371051789,-204.0,0.0002981,30]
[381853818,1756371051798,-1000.0,0.00029841,10]
[381853820,1756371051808,-183.33333333,0.00029849,2]
[381853822,1756371051817,-2096.0,0.00029851,2]
[381853824,1756371051827,-258.36640047,0.00029855,2]
[381853826,1756371051836,-209.23523988,0.00029871,2]
[381853828,1756371051846,-1058.86,0.000299,30]
[381853830,1756371051855,-7844.13,0.000299,2]
[381853832,1756371051864,-89188.86,0.000299,7]
[381853834,1756371051874,-150.0,0.0002991,7]
[381853836,1756371051884,-232.13267221,0.0002999,2]
[381853838,1756371051893,-303.67965703,0.0002999,2]
[381853840,1756371051902,-396.63255024,0.00029999,2]
[381853842,1756371051911,-16443.69948959,0.0003,2]
[381853844,1756371051920,-216.0,0.0003,30]
[381853846,1756371051929,-552.0,0.0003,30]
[381853848,1756371051938,-150.0,0.0003,2]
[381853850,1756371051948,-44618.88933764,0.0003,5]
[381853852,1756371051957,-839.12052614,0.0003,30]
[381853854,1756371051966,-1776.33515397,0.0003,2]
[381853856,1756371051975,-162.18478856,0.0003,2]
[381853857,1756371051985,-1070.09037551,0.0003,10]
[381853860,1756371051995,-979.58989437,0.0003,2]
[381853861,1756371052004,-400.0,0.0003,20]
[381853863,1756371052013,-600.14062568,0.0003,2]
[381853865,1756371052022,-89188.86,0.0003,7]
[381853867,1756371052031,-2299.99999805,0.0003,2]
[381853869,1756371052041,-7844.13,0.0003,2]
[381853871,1756371052050,-700.0,0.00030074,7]
[381853873,1756371052059,-150.0,0.00030074,30]
[381853875,1756371052069,-637.58712648,0.00030126,2]
[381853877,1756371052078,-305.51510141,0.0003013,2]
[381853879,1756371052087,-197.24689594,0.0003013,2]
[381853881,1756371052096,-676.37662762,0.0003013,30]
[381853883,1756371052105,-200.93122636,0.0003013,2]
[381853885,1756371052114,-200.0,0.0003013,2]
[381853887,1756371052123,-2965.0,0.00030136,5]
[381853889,1756371052133,-200.0,0.00030136,2]
[381853891,1756371052142,-166.27146386,0.00030137,7]
[381853893,1756371052151,-500.0,0.00030137,7]
[381853895,1756371052162,-1200.0,0.00030137,7]
[381853897,1756371052172,-500.83733438,0.00030137,7]
[381853899,1756371052183,-218.28260086,0.00030137,7]
[381853901,1756371052192,-1200.0,0.00030137,7]
[381853903,1756371052201,-500.0,0.00030137,7]
[381853915,1756371052300,-500.0,0.00030137,7]
[381853917,1756371052311,-500.0,0.00030137,7]
[381853919,1756371052320,-500.0,0.00030137,7]
[381853921,1756371052330,-1200.0,0.00030137,7]
[381853924,1756371052343,-500.0,0.00030137,7]
[381853926,1756371052353,-503.0594545,0.00030137,7]
[381853928,1756371052362,-500.0,0.00030137,7]
[381853930,1756371052371,-500.0,0.00030137,7]
[381853932,1756371052381,-500.0,0.00030137,7]
[381853934,1756371052390,-1200.0,0.00030137,7]
[381853936,1756371052399,-1600.0,0.00030137,7]
[381853938,1756371052409,-500.0,0.00030137,7]
[381853940,1756371052418,-500.0,0.00030137,7]
[381853942,1756371052427,-500.0,0.00030137,7]
[381853944,1756371052437,-500.0,0.00030137,7]
[381853946,1756371052446,-1200.0,0.00030137,7]
[381853948,1756371052456,-1600.0,0.00030137,7]
[381853950,1756371052465,-500.0,0.00030137,7]
[381853952,1756371052475,-500.0,0.00030137,7]
[381853954,1756371052484,-500.0,0.00030137,7]
[381853956,1756371052494,-500.0,0.00030137,7]
[381853959,1756371052505,-1200.0,0.00030137,7]
[381853961,1756371052515,-1600.0,0.00030137,7]
[381853963,1756371052525,-500.0,0.00030137,7]
[381853965,1756371052534,-500.0,0.00030137,7]
[381853967,1756371052543,-500.0,0.00030137,7]
[381853969,1756371052552,-500.0,0.00030137,7]
[381853971,1756371052561,-500.0,0.00030137,7]
[381853973,1756371052576,-1600.0,0.00030137,7]
[381853975,1756371052585,-500.0,0.00030137,7]
[381853977,1756371052595,-500.0,0.00030137,7]
[381853979,1756371052604,-1200.0,0.00030137,7]
[381853981,1756371052615,-1600.0,0.00030137,7]
[381853982,1756371052624,-500.0,0.00030137,7]
[381853984,1756371052634,-500.0,0.00030137,7]
[381853986,1756371052644,-500.0,0.00030137,7]
[381853988,1756371052653,-1600.0,0.00030137,7]
[381853990,1756371052662,-500.0,0.00030137,7]
[381853992,1756371052672,-1200.0,0.00030137,7]
[381853994,1756371052682,-1600.0,0.00030137,7]
[381853997,1756371052692,-500.0,0.00030137,7]
[381853999,1756371052701,-1200.0,0.00030137,7]
[381854001,1756371052711,-1600.0,0.00030137,7]
[381854003,1756371052720,-500.0,0.00030137,7]
[381854005,1756371052730,-961.38609621,0.00030137,7]
[381854007,1756371052740,-500.0,0.00030137,7]
[381854009,1756371052749,-1200.0,0.00030137,7]
[381854011,1756371052758,-1600.0,0.00030137,7]
[381854013,1756371052767,-500.0,0.00030137,7]
[381854015,1756371052777,-1200.0,0.00030137,7]
[381854017,1756371052786,-500.0,0.00030137,7]
[381854019,1756371052796,-1600.0,0.00030137,7]
[381854021,1756371052805,-1200.0,0.00030137,7]
[381854023,1756371052814,-500.0,0.00030137,7]
[381854025,1756371052824,-1600.0,0.00030137,7]
[381854027,1756371052833,-500.0,0.00030137,7]
[381854028,1756371052843,-500.0,0.00030137,7]
[381854030,1756371052852,-1200.0,0.00030137,7]
[381854032,1756371052862,-311.60891705,0.00030137,7]
[381854033,1756371052871,-810.0,0.00030137,7]
[381854035,1756371052880,-427.85149818,0.00030137,7]
[381854037,1756371052889,-1200.0,0.00030137,7]
[381854039,1756371052899,-719.90060203,0.00030137,7]
[381854040,1756371052908,-1400.0,0.00030137,7]
[381854042,1756371052917,-1600.0,0.00030137,7]
[381854044,1756371052927,-500.0,0.00030137,7]
[381854046,1756371052936,-500.0,0.00030137,7]
[381854047,1756371052945,-1200.0,0.00030137,7]
[381854049,1756371052955,-1200.0,0.00030137,7]
[381854051,1756371052964,-1400.0,0.00030137,7]
[381854053,1756371052974,-1600.0,0.00030137,7]
[381854054,1756371052983,-500.0,0.00030137,7]
[381854056,1756371052992,-500.0,0.00030137,7]
[381854058,1756371053001,-500.7,0.00030137,7]
[381854060,1756371053010,-1200.0,0.00030137,7]
[381854061,1756371053020,-1600.0,0.00030137,7]
[381854063,1756371053029,-1400.0,0.00030137,7]
[381854065,1756371053039,-1200.0,0.00030137,7]
[381854067,1756371053049,-500.0,0.00030137,7]
[381854069,1756371053058,-500.0,0.00030137,7]
[381854070,1756371053067,-1200.0,0.00030137,7]
[381854072,1756371053077,-500.0,0.00030137,7]
[381854074,1756371053087,-500.0,0.00030137,7]
[381854076,1756371053096,-1400.0,0.00030137,7]
[381854078,1756371053105,-1600.0,0.00030137,7]
[381854079,1756371053114,-1200.0,0.00030137,7]
[381854081,1756371053123,-500.0,0.00030137,7]
[381854083,1756371053133,-1200.0,0.00030137,7]
[381854085,1756371053142,-598.42596953,0.00030137,7]
[381854087,1756371053152,-598.98932572,0.00030137,7]
[381854088,1756371053162,-1200.0,0.00030137,7]
[381854090,1756371053171,-1400.0,0.00030137,7]
[381854092,1756371053182,-1600.0,0.00030137,7]
[381854094,1756371053191,-1200.0,0.00030137,7]
[381854095,1756371053202,-1400.0,0.00030137,7]
[381854097,1756371053211,-1600.0,0.00030137,7]
[381854099,1756371053221,-1200.0,0.00030137,7]
[381854101,1756371053231,-500.0,0.00030137,7]
[381854103,1756371053242,-1200.0,0.00030137,7]
[381854105,1756371053251,-1600.0,0.00030137,7]
[381854107,1756371053261,-500.0,0.00030137,7]
[381854109,1756371053273,-1200.0,0.00030137,7]
[381854110,1756371053282,-500.0,0.00030137,7]
[381854112,1756371053293,-1200.0,0.00030137,7]
[381854114,1756371053304,-1400.0,0.00030137,7]
[381854116,1756371053314,-1200.0,0.00030137,7]
[381854118,1756371053323,-1600.0,0.00030137,7]
[381854119,1756371053332,-1200.0,0.00030137,7]
[381854121,1756371053342,-1400.0,0.00030137,7]
[381854123,1756371053352,-1200.0,0.00030137,7]
[381854125,1756371053362,-1600.0,0.00030137,7]
[381854127,1756371053371,-1200.0,0.00030137,7]
[381854129,1756371053381,-500.0,0.00030137,7]
[381854131,1756371053389,-1400.0,0.00030137,7]
[381854132,1756371053399,-1200.0,0.00030137,7]
[381854134,1756371053408,-500.0,0.00030137,7]
[381854136,1756371053418,-1200.0,0.00030137,7]
[381854138,1756371053428,-1600.0,0.00030137,7]
[381854140,1756371053438,-500.0,0.00030137,7]
[381854142,1756371053447,-600.0,0.00030137,7]
[381854144,1756371053456,-1400.0,0.00030137,7]
[381854145,1756371053466,-1200.0,0.00030137,7]
[381854147,1756371053475,-1600.0,0.00030137,7]
[381854149,1756371053484,-500.0,0.00030137,7]
[381854151,1756371053493,-500.0,0.00030137,7]
[381854153,1756371053503,-1200.0,0.00030137,7]
[381854155,1756371053512,-600.0,0.00030137,7]
[381854156,1756371053522,-500.0,0.00030137,7]
[381854158,1756371053531,-1400.0,0.00030137,7]
[381854160,1756371053540,-1200.0,0.00030137,7]
[381854162,1756371053549,-500.0,0.00030137,7]
[381854164,1756371053559,-1600.0,0.00030137,7]
[381854166,1756371053574,-866.63500132,0.00030137,7]
[381854168,1756371053583,-500.0,0.00030137,7]
[381854170,1756371053592,-992.5322575,0.00030137,7]
[381854171,1756371053602,-600.0,0.00030137,7]
[381854173,1756371053613,-500.0,0.00030137,7]
[381854175,1756371053622,-1400.0,0.00030137,7]
[381854177,1756371053631,-401.89009191,0.00030137,7]
[381854179,1756371053641,-1200.0,0.00030137,7]
[381854180,1756371053650,-500.0,0.00030137,7]
[381854182,1756371053660,-572.51930477,0.00030137,7]
[381854184,1756371053670,-500.0,0.00030137,7]
[381854186,1756371053679,-1600.0,0.00030137,7]
[381854188,1756371053689,-1200.0,0.00030137,7]
[381854190,1756371053699,-500.0,0.00030137,7]
[381854191,1756371053709,-600.0,0.00030137,7]
[381854193,1756371053718,-500.0,0.00030137,7]
[381854195,1756371053727,-1400.0,0.00030137,7]
[381854197,1756371053736,-1200.0,0.00030137,7]
[381854199,1756371053745,-500.0,0.00030137,7]
[381854201,1756371053755,-1600.0,0.00030137,7]
[381854202,1756371053764,-1200.0,0.00030137,7]
[381854204,1756371053773,-500.0,0.00030137,7]
[381854206,1756371053783,-500.0,0.00030137,7]
[381854208,1756371053792,-600.0,0.00030137,7]
[381854210,1756371053802,-1200.0,0.00030137,7]
[381854212,1756371053811,-500.0,0.00030137,7]
[381854214,1756371053820,-1600.0,0.00030137,7]
[381854216,1756371053830,-1200.0,0.00030137,7]
[381854217,1756371053839,-600.0,0.00030137,7]
[381854219,1756371053848,-1814.98665901,0.00030137,7]
[381854221,1756371053857,-500.0,0.00030137,7]
[381854223,1756371053866,-1600.0,0.00030137,7]
[381854225,1756371053875,-1400.0,0.00030137,7]
[381854226,1756371053884,-1200.0,0.00030137,7]
[381854228,1756371053893,-600.0,0.00030137,7]
[381854230,1756371053902,-500.0,0.00030137,7]
[381854232,1756371053911,-681.75271276,0.00030137,7]
[381854234,1756371053921,-500.0,0.00030137,7]
[381854235,1756371053930,-2902.10075811,0.00030137,7]
[381854237,1756371053939,-1200.0,0.00030137,7]
[381854239,1756371053948,-1400.0,0.00030137,7]
[381854241,1756371053957,-600.0,0.00030137,7]
[381854243,1756371053966,-982.06333775,0.00030137,7]
[381854245,1756371053976,-500.0,0.00030137,7]
[381854247,1756371053985,-516.96360393,0.00030137,7]
[381854248,1756371053994,-1200.0,0.00030137,7]
[381854250,1756371054003,-1400.0,0.00030137,7]
[381854252,1756371054012,-600.0,0.00030137,7]
[381854254,1756371054022,-500.0,0.00030137,7]
[381854255,1756371054031,-998.13785374,0.00030137,7]
[381854257,1756371054040,-216.06651795,0.00030137,7]
[381854259,1756371054049,-1200.0,0.00030137,7]
[381854261,1756371054058,-1400.0,0.00030137,7]
[381854263,1756371054067,-179.82141733,0.00030137,7]
[381854265,1756371054076,-1400.0,0.00030137,7]
[381854266,1756371054086,-500.0,0.00030137,7]
[381854268,1756371054095,-1400.0,0.00030137,7]
[381854270,1756371054105,-1200.0,0.00030137,7]
[381854272,1756371054117,-600.0,0.00030137,7]
[381854274,1756371054129,-500.0,0.00030137,7]
[381854276,1756371054138,-1400.0,0.00030137,7]
[381854278,1756371054147,-1200.0,0.00030137,7]
[381854279,1756371054157,-1400.0,0.00030137,7]
[381854281,1756371054166,-918.28779461,0.00030137,7]